fUST/lending_fUST_20260106
["ID","MTS","AMOUNT","RATE_DAILY","PERIOD"]
[400496965,1767669032175,-176.69,0.00012329,2]
[400496967,1767669032184,-883.5,0.00012329,2]
[400496968,1767669032193,-154.98,0.000125,2]
[400496970,1767669032202,-300.0,0.00012898,2]
[400496972,1767669032212,-606.01974648,0.00012898,2]
[400496992,1767669038228,-593.98025352,0.00012898,2]
[400496995,1767669038238,-3093.91942052,0.00012899,2]
[400496997,1767669038248,-2409.48463814,0.00012992,2]
[400496999,1767669038257,-546.38486595,0.00012998,2]
[400497000,1767669038267,-267.72302843,0.00012998,2]
[400497003,1767669038276,-500.0,0.00012998,2]
[400497005,1767669038286,-500.0,0.00012998,2]
[400497007,1767669038295,-386.13858628,0.00012998,2]
[400497008,1767669038305,-11515.69698617,0.00012999,2]
[400497010,1767669038315,-500.0,0.00013,2]
[400497012,1767669038324,-199.24511761,0.00013,2]
[400497014,1767669038333,-500.0,0.00013,2]
[400497016,1767669038342,-500.0,0.00013,2]
[400497018,1767669038352,-500.0,0.00013,2]
[400497020,1767669038361,-500.0,0.00013,2]
[400497022,1767669038370,-500.0,0.00013,2]
[400497024,1767669038380,-153.73415619,0.00013,2]
[400497026,1767669038390,-642.31305021,0.00013,2]
[400497028,1767669038400,-500.0,0.00013,2]
[400497030,1767669038409,-500.0,0.00013,2]
[400497032,1767669038418,-500.0,0.00013,2]
[400497034,1767669038429,-500.0,0.00013,2]
[400497036,1767669038438,-500.0,0.00013,2]
[400497038,1767669038447,-500.0,0.00013,2]
[400497040,1767669038456,-500.0,0.00013,2]
[400497042,1767669038465,-500.0,0.00013,2]
[400497044,1767669038474,-500.0,0.00013,2]
[400497046,1767669038483,-449.61913515,0.00013,2]
[400497048,1767669038492,-1000000.0,0.00013001,2]
[400497050,1767669038501,-988.56,0.000131,2]
[400497052,1767669038511,-150.38167327,0.000131,2]
[400497054,1767669038520,-1041.66666667,0.00013122,2]
[400497056,1767669038529,-204.51551974,0.00013172,2]
[400497058,1767669038538,-166.775,0.00013199,2]
[400497060,1767669038548,-3369.1925274,0.00013201,2]
[400497062,1767669038557,-71490.3207029,0.00013201,2]
[400497064,1767669038566,-3359.263834,0.00013201,2]
[400497066,1767669038576,-15218.7151462,0.00013201,2]
[400497068,1767669038586,-500.0,0.00013273,2]
[400497070,1767669038599,-500.0,0.00013273,2]
[400497072,1767669038610,-500.0,0.00013273,2]
[400497074,1767669038620,-500.0,0.00013273,2]
[400497076,1767669038629,-500.0,0.00013273,2]
[400497078,1767669038638,-500.0,0.00013273,2]
[400497080,1767669038647,-500.0,0.00013273,2]
[400497082,1767669038658,-500.0,0.00013273,2]
[400497084,1767669038666,-500.0,0.00013273,2]
[400497086,1767669038676,-500.0,0.00013273,2]
[400497088,1767669038687,-500.0,0.00013273,2]
[400497090,1767669038696,-500.0,0.00013273,2]
[400497092,1767669038705,-196.86475902,0.00013273,2]
[400497094,1767669038715,-500.0,0.00013273,2]
[400497096,1767669038724,-500.0,0.00013273,2]
[400497098,1767669038734,-500.0,0.00013273,2]
[400497100,1767669038743,-500.0,0.00013273,2]
[400497102,1767669038752,-500.0,0.00013273,2]
[400497104,1767669038761,-500.0,0.00013273,2]
[400497106,1767669038770,-500.0,0.00013273,2]
[400497108,1767669038779,-500.0,0.00013273,2]
[400497110,1767669038788,-500.0,0.00013273,2]
[400497112,1767669038798,-500.0,0.00013273,2]
[400497114,1767669038807,-500.0,0.00013273,2]
[400497116,1767669038817,-500.0,0.00013273,2]
[400497118,1767669038827,-500.0,0.00013273,2]
[400497120,1767669038836,-500.0,0.00013273,2]
[400497122,1767669038846,-500.0,0.00013273,2]
[400497124,1767669038856,-500.0,0.00013273,2]
[400497126,1767669038866,-500.0,0.00013273,2]
[400497128,1767669038876,-500.0,0.00013273,2]
[400497130,1767669038885,-500.0,0.00013273,2]
[400497132,1767669038894,-500.0,0.00013273,2]
[400497134,1767669038903,-300.0,0.00013673,2]
[400497136,1767669039062,-300.0,0.00013673,2]
[400497137,1767669039073,-300.0,0.00013673,2]
[400497138,1767669039083,-300.0,0.00013673,2]
[400497139,1767669039092,-300.0,0.00013673,2]
[400497140,1767669039102,-300.0,0.00013673,2]
[400497141,1767669039112,-300.0,0.00013673,2]
[400497142,1767669039121,-300.0,0.00013673,2]
[400497143,1767669039130,-300.0,0.00013673,2]
[400497144,1767669039139,-300.0,0.00013673,2]
[400497145,1767669039148,-300.0,0.00013673,2]
[400497146,1767669039157,-300.0,0.00013673,2]
[400497147,1767669039166,-300.0,0.00013673,2]
[400497148,1767669039176,-300.0,0.00013673,2]
[400497149,1767669039186,-300.0,0.00013673,2]
[400497150,1767669039196,-300.0,0.00013673,2]
[400497151,1767669039206,-500.0,0.00013698,2]
[400497152,1767669039217,-500.0,0.00013698,2]
[400497153,1767669039227,-500.0,0.00013698,2]
[400497154,1767669039237,-500.0,0.00013698,2]
[400497155,1767669039246,-476.39506874,0.00013698,2]
[400497156,1767669039255,-500.0,0.00013698,2]
[400497157,1767669039265,-500.0,0.00013698,2]
[400497158,1767669039275,-500.0,0.00013698,2]
[400497159,1767669039284,-500.0,0.00013698,2]
[400497160,1767669039294,-500.0,0.00013698,2]
[400497161,1767669039304,-500.0,0.00013698,2]
[400497162,1767669039314,-500.0,0.00013698,2]
[400497163,1767669039324,-500.0,0.00013698,2]
[400497164,1767669039333,-500.0,0.00013698,2]
[400497165,1767669039342,-500.0,0.00013698,2]
[400497166,1767669039351,-500.0,0.00013698,2]
[400497167,1767669039361,-500.0,0.00013698,2]
[400497168,1767669039370,-500.0,0.00013698,2]
[400497169,1767669039380,-500.0,0.00013698,2]
[400497170,1767669039389,-500.0,0.00013698,2]
[400497171,1767669039399,-500.0,0.00013698,2]
[400497172,1767669039409,-500.0,0.00013698,2]
[400497173,1767669039418,-500.0,0.00013698,2]
[400497174,1767669039427,-298.8,0.00013698,2]
[400497175,1767669039437,-1905.13,0.00013698,2]
[400497176,1767669039446,-1905.13,0.00013698,2]
[400497177,1767669039455,-1905.13,0.00013698,2]
[400497178,1767669039464,-1905.13,0.00013698,2]
[400497179,1767669039474,-1905.13,0.00013698,2]
[400497180,1767669039483,-1905.13,0.00013698,2]
[400497181,1767669039492,-1905.13,0.00013698,2]
[400497182,1767669039502,-1905.13,0.00013698,2]
[400497183,1767669039512,-1905.13,0.00013698,2]
[400497184,1767669039521,-1905.13,0.00013698,2]
[400497185,1767669039531,-1905.13,0.00013698,2]
[400497186,1767669039541,-1905.13,0.00013698,2]
[400497187,1767669039551,-1905.13,0.00013698,2]
[400497188,1767669039561,-1905.13,0.00013698,2]
[400497189,1767669039570,-1905.13,0.00013698,2]
[400497190,1767669039580,-1905.13,0.00013698,2]
[400497191,1767669039591,-1905.13,0.00013698,2]
[400497192,1767669039601,-1905.13,0.00013698,2]
[400497193,1767669039614,-1905.13,0.00013698,2]
[400497194,1767669039623,-1905.13,0.00013698,2]
[400497195,1767669039632,-1905.13,0.00013698,2]
[400497196,1767669039642,-1905.13,0.00013698,2]
[400497197,1767669039653,-1905.13,0.00013698,2]
[400497198,1767669039663,-1905.17,0.00013698,2]
[400497199,1767669039672,-500.0,0.00013698,2]
[400497200,1767669039682,-500.0,0.00013698,2]
[400497201,1767669039693,-500.0,0.00013698,2]
[400497202,1767669039703,-60.87931796,0.00013698,2]
[400497203,1767669039720,-439.12068204,0.00013698,2]
[400497204,1767669039730,-500.0,0.00013698,2]
[400497205,1767669039739,-500.0,0.00013698,2]
[400497206,1767669039749,-500.0,0.00013698,2]
[400497207,1767669039758,-610.08904206,0.00013698,2]
[400497208,1767669039767,-500.0,0.00013698,2]
[400497209,1767669039776,-500.0,0.00013698,2]
[400497210,1767669039786,-500.0,0.00013698,2]
[400497211,1767669039795,-500.0,0.00013698,2]
[400497212,1767669039807,-500.0,0.00013698,2]
[400497213,1767669039827,-500.0,0.00013698,2]
[400497214,1767669039841,-500.0,0.00013698,2]
[400497215,1767669039853,-500.0,0.00013698,2]
[400497216,1767669039864,-500.0,0.00013698,2]
[400497217,1767669039874,-500.0,0.00013698,2]
[400497218,1767669039886,-500.0,0.00013698,2]
[400497220,1767669039906,-500.0,0.00013698,2]
[400497221,1767669039925,-264.46220981,0.00013698,2]
[400497222,1767669039936,-567.01199225,0.00013698,2]
[400497223,1767669039946,-500.0,0.00013698,2]
[400497224,1767669039956,-439.1513283,0.00013698,2]
[400497225,1767669039967,-500.0,0.00013698,2]
[400497226,1767669039978,-500.0,0.00013698,2]
[400497227,1767669039989,-500.0,0.00013698,2]
[400497229,1767669040000,-500.0,0.00013698,2]
[400497231,1767669040009,-500.0,0.00013698,2]
[400497232,1767669040018,-500.0,0.00013698,2]
[400497234,1767669040028,-177.41660728,0.00013698,2]
[400497236,1767669040037,-500.0,0.00013698,2]
[400497238,1767669040046,-500.0,0.00013698,2]
[400497239,1767669040056,-500.0,0.00013698,2]
[400497240,1767669040065,-500.0,0.00013698,2]
[400497241,1767669040075,-562.85725465,0.00013698,2]
[400497242,1767669040084,-500.0,0.00013698,2]
[400497243,1767669040093,-500.0,0.00013698,2]
[400497244,1767669040103,-500.0,0.00013698,2]
[400497245,1767669040112,-500.0,0.00013698,2]
[400497246,1767669040121,-500.0,0.00013698,2]
[400497247,1767669040130,-500.0,0.00013698,2]
[400497248,1767669040140,-500.0,0.00013698,2]
[400497249,1767669040157,-500.0,0.00013698,2]
[400497250,1767669040179,-500.0,0.00013698,2]
[400497251,1767669040193,-500.0,0.00013698,2]
[400497252,1767669040204,-500.0,0.00013698,2]
[400497253,1767669040213,-500.0,0.00013698,2]
[400497254,1767669040222,-500.0,0.00013698,2]
[400497255,1767669040233,-500.0,0.00013698,2]
[400497256,1767669040244,-500.0,0.00013698,2]
[400497258,1767669040254,-500.0,0.00013698,2]
[400497260,1767669040263,-500.0,0.00013698,2]
[400497261,1767669040273,-500.0,0.00013698,2]
[400497262,1767669040283,-500.0,0.00013698,2]
[400497263,1767669040293,-268.38047477,0.00013698,2]
[400497264,1767669040303,-181.02300116,0.00013699,2]
[400497265,1767669040313,-12082.6634422,0.00013699,2]
[400497266,1767669040324,-1192.251906,0.00013699,2]
[400497267,1767669040335,-1456.76833,0.00013699,2]
[400497268,1767669040355,-1000.0,0.00013699,2]
[400497269,1767669040367,-2944.8238159,0.00013699,2]
[400497270,1767669040378,-500.0,0.00013699,2]
[400497271,1767669040387,-500.0,0.00013699,2]
[400497272,1767669040398,-500.0,0.00013699,2]
[400497273,1767669040409,-500.0,0.00013699,2]
[400497274,1767669040420,-500.0,0.00013699,2]
[400497275,1767669040431,-500.0,0.00013699,2]
[400497276,1767669040442,-500.0,0.00013699,2]
[400497277,1767669040453,-500.0,0.00013699,2]
[400497278,1767669040463,-587.76294591,0.00013699,2]
[400497280,1767669040473,-500.0,0.00013699,2]
[400497281,1767669040483,-500.0,0.00013699,2]
[400497282,1767669040492,-500.0,0.00013699,2]
[400497284,1767669040503,-500.0,0.00013699,2]
[400497286,1767669040514,-500.0,0.00013699,2]
[400497288,1767669040524,-500.0,0.00013699,2]
[400497289,1767669040536,-500.0,0.00013699,2]
[400497291,1767669040546,-500.0,0.00013699,2]
[400497292,1767669040557,-500.0,0.00013699,2]
[400497293,1767669040567,-500.0,0.00013699,2]
[400497294,1767669040578,-500.0,0.00013699,2]
[400497295,1767669040588,-243.06460399,0.00013699,2]
[400497296,1767669040597,-500.0,0.00013699,2]
[400497297,1767669040608,-500.0,0.00013699,2]
[400497298,1767669040623,-346.7243931,0.00013699,2]
[400497299,1767669040633,-500.0,0.00013699,2]
[400497300,1767669040643,-160.2776929,0.00013699,2]
[400497301,1767669040654,-500.0,0.00013699,2]
[400497302,1767669040663,-500.0,0.00013699,2]
[400497303,1767669040674,-500.0,0.00013699,2]
[400497304,1767669040686,-500.0,0.00013699,2]
[400497305,1767669040696,-500.0,0.00013699,2]
[400497306,1767669040706,-500.0,0.00013699,2]
[400497307,1767669040715,-500.0,0.00013699,2]
[400497308,1767669040725,-500.0,0.00013699,2]
[400497309,1767669040734,-304.16913959,0.00013699,2]
[400497310,1767669040743,-165.1644555,0.00013699,2]
[400497311,1767669040753,-500.0,0.00013699,2]
[400497312,1767669040762,-500.0,0.00013699,2]
[400497313,1767669040772,-500.0,0.00013699,2]
[400497314,1767669040781,-500.0,0.00013699,2]
[400497315,1767669040790,-500.0,0.00013699,2]
[400497316,1767669040800,-500.0,0.00013699,2]
[400497317,1767669040810,-500.0,0.00013699,2]
[400497318,1767669040819,-500.0,0.00013699,2]
[400497319,1767669040828,-500.0,0.00013699,2]
[400497320,1767669040837,-159.86528726,0.00013699,2]
[400497321,1767669040847,-500.0,0.00013699,2]
[400497322,1767669040856,-500.0,0.00013699,2]
[400497323,1767669040866,-500.0,0.00013699,2]
[400497324,1767669040875,-500.0,0.00013699,2]
[400497325,1767669040885,-417.08327513,0.00013699,2]
[400497326,1767669040895,-500.0,0.00013699,2]
[400497327,1767669040904,-500.0,0.00013699,2]
[400497328,1767669040914,-500.0,0.00013699,2]
[400497329,1767669040924,-500.0,0.00013699,2]
[400497330,1767669040934,-340.33491513,0.00013699,2]
[400497331,1767669040943,-500.83987225,0.00013699,2]
[400497332,1767669040952,-500.0,0.00013699,2]
[400497333,1767669040961,-500.0,0.00013699,2]
[400497334,1767669040971,-500.0,0.00013699,2]
[400497335,1767669040980,-500.0,0.00013699,2]
[400497336,1767669040989,-500.0,0.00013699,2]
[400497337,1767669040998,-525.1397974,0.00013699,2]
[400497338,1767669041008,-500.0,0.00013699,2]
[400497339,1767669041017,-163.78603439,0.00013699,2]
[400497340,1767669041027,-500.0,0.00013699,2]
[400497341,1767669041037,-500.0,0.00013699,2]
[400497342,1767669041046,-500.0,0.00013699,2]
[400497343,1767669041056,-500.0,0.00013699,2]
[400497344,1767669041065,-500.0,0.00013699,2]
[400497345,1767669041074,-500.0,0.00013699,2]
[400497346,1767669041083,-535.19355678,0.00013699,2]
[400497347,1767669041093,-500.0,0.00013699,2]
[400497348,1767669041102,-500.0,0.00013699,2]
[400497349,1767669041111,-159.80406561,0.00013699,2]
[400497350,1767669041120,-500.0,0.00013699,2]
[400497351,1767669041130,-500.0,0.00013699,2]
[400497352,1767669041139,-500.0,0.00013699,2]
[400497353,1767669041148,-500.0,0.00013699,2]
[400497354,1767669041158,-500.0,0.00013699,2]
[400497355,1767669041166,-500.0,0.00013699,2]
[400497356,1767669041175,-500.0,0.00013699,2]
[400497357,1767669041184,-500.0,0.00013699,2]
[400497358,1767669041194,-500.0,0.00013699,2]
[400497359,1767669041204,-500.15660146,0.00013699,2]
[400497360,1767669041213,-500.0,0.00013699,2]
[400497361,1767669041223,-500.0,0.00013699,2]
[400497362,1767669041232,-500.0,0.00013699,2]
[400497363,1767669041241,-500.0,0.00013699,2]
[400497364,1767669041250,-500.0,0.00013699,2]
[400497365,1767669041259,-500.0,0.00013699,2]
[400497366,1767669041269,-500.0,0.00013699,2]
[400497367,1767669041278,-500.0,0.00013699,2]
[400497368,1767669041287,-158.22957417,0.00013699,2]
[400497369,1767669041296,-500.0,0.00013699,2]
[400497370,1767669041305,-500.0,0.00013699,2]
[400497371,1767669041314,-1000.0,0.00013821,2]
[400497372,1767669041324,-1000.0,0.00013821,2]
[400497373,1767669041333,-1000.0,0.00013821,2]
[400497374,1767669041342,-79.21400001,0.00013821,2]
[400497381,1767669044295,-920.78599999,0.00013821,2]
[400497382,1767669044304,-1000.0,0.00013821,2]
[400497383,1767669044314,-1000.0,0.00013821,2]
[400497384,1767669044323,-278.65347343,0.00013821,2]
[400497385,1767669044334,-1000.0,0.00013821,2]
[400497386,1767669044343,-1000.0,0.00013821,2]
[400497387,1767669044352,-253.16853169,0.00013821,2]
[400497388,1767669044362,-1000.0,0.00013821,2]
[400497389,1767669044371,-784.48693118,0.00013821,2]
[400497390,1767669044380,-1000.0,0.00013821,2]
[400497391,1767669044389,-1000.0,0.00013821,2]
[400497392,1767669044398,-1000.0,0.00013821,2]
[400497393,1767669044408,-1000.0,0.00013821,2]
[400497394,1767669044417,-1000.0,0.00013821,2]
[400497395,1767669044427,-1019.79761264,0.00013821,2]
[400497396,1767669044437,-1000.0,0.00013821,2]
[400497397,1767669044446,-1000.0,0.00013821,2]
[400497398,1767669044456,-1000.0,0.00013821,2]
[400497399,1767669044466,-1000.0,0.00013821,2]
[400497400,1767669044476,-1000.0,0.00013821,2]
[400497401,1767669044485,-1000.0,0.00013821,2]
[400497402,1767669044494,-1000.0,0.00013821,2]
[400497403,1767669044504,-1000.0,0.00013821,2]
[400497404,1767669044514,-965.96303408,0.00013821,2]
[400497405,1767669044524,-1129.91041953,0.00013821,2]
[400497406,1767669044533,-1000.0,0.00013821,2]
[400497407,1767669044543,-1000.0,0.00013821,2]
[400497408,1767669044552,-1000.0,0.00013821,2]
[400497409,1767669044562,-1000.0,0.00013821,2]
[400497410,1767669044575,-5000.0,0.0001386,2]
[400497411,1767669044584,-176.093612,0.00013898,2]
[400497412,1767669044594,-600.0,0.00013945,2]
[400497413,1767669044604,-364.5096991,0.00014,2]
[400497414,1767669044618,-154.98,0.000141,2]
[400497415,1767669044628,-1365.0,0.00014113,2]
[400497416,1767669044637,-2145.0,0.00014113,2]
[400497417,1767669044647,-628.0,0.00014113,2]
[400497418,1767669044658,-600.0,0.00014221,2]
[400497419,1767669044667,-252.4315364,0.00014247,2]
[400497420,1767669044677,-1000.0,0.00014247,2]
[400497421,1767669044688,-837.68846286,0.00014247,2]
[400497428,1767669046247,-162.31153714,0.00014247,2]
[400497429,1767669046256,-1000.0,0.00014247,2]
[400497430,1767669046266,-1000.0,0.00014247,2]
[400497431,1767669046276,-1000.0,0.00014247,2]
[400497432,1767669046285,-1000.0,0.00014247,2]
[400497433,1767669046295,-1000.0,0.00014247,2]
[400497434,1767669046305,-1000.0,0.00014247,2]
[400497435,1767669046314,-1000.0,0.00014247,2]
[400497436,1767669046325,-1000.0,0.00014247,2]
[400497437,1767669046335,-1000.0,0.00014247,2]
[400497438,1767669046346,-1000.0,0.00014247,2]
[400497439,1767669046355,-1000.0,0.00014247,2]
[400497440,1767669046365,-610.04578068,0.00014247,2]
[400497441,1767669046374,-1000.0,0.00014247,2]
[400497442,1767669046384,-1000.0,0.00014247,2]
[400497443,1767669046394,-1000.0,0.00014247,2]
[400497444,1767669046403,-1000.0,0.00014247,2]
[400497445,1767669046414,-1000.0,0.00014247,2]
[400497446,1767669046424,-1000.0,0.00014247,2]
[400497447,1767669046434,-158.06872669,0.00014247,2]
[400497448,1767669046443,-689.70557949,0.00014247,2]
[400497449,1767669046456,-913.01296513,0.00014247,2]
[400497450,1767669046466,-250.0,0.00014247,2]
[400497451,1767669046475,-1000.0,0.00014247,2]
[400497452,1767669046485,-1000.0,0.00014247,2]
[400497453,1767669046498,-1000.0,0.00014247,2]
[400497454,1767669046507,-1000.0,0.00014247,2]
[400497455,1767669046516,-752.21143633,0.00014247,2]
[400497456,1767669046527,-1000.0,0.00014247,2]
[400497457,1767669046536,-1000.0,0.00014247,2]
[400497458,1767669046545,-1000.0,0.00014247,2]
[400497459,1767669046554,-1000.0,0.00014247,2]
[400497460,1767669046563,-1000.0,0.00014247,2]
[400497461,1767669046572,-1003.63728539,0.00014247,2]
[400497462,1767669046581,-1000.0,0.00014247,2]
[400497463,1767669046590,-1000.0,0.00014247,2]
[400497464,1767669046599,-1000.0,0.00014247,2]
[400497465,1767669046608,-1000.0,0.00014247,2]
[400497466,1767669046625,-1000.0,0.00014247,2]
[400497467,1767669046635,-1000.0,0.00014247,2]
[400497468,1767669046644,-433.8792482,0.00014247,2]
[400497469,1767669046653,-1000.0,0.00014247,2]
[400497470,1767669046662,-1000.0,0.00014247,2]
[400497471,1767669046671,-1000.0,0.00014247,2]
[400497472,1767669046680,-441.41495642,0.00014247,2]
[400497473,1767669046690,-1000.0,0.00014247,2]
[400497474,1767669046699,-310.17945934,0.00014247,2]
[400497475,1767669046708,-1000.0,0.00014247,2]
[400497476,1767669046716,-443.29394976,0.00014247,2]
[400497477,1767669046725,-866.68936351,0.00014247,2]
[400497478,1767669046737,-1000.0,0.00014247,2]
[400497479,1767669046746,-1000.0,0.00014247,2]
[400497480,1767669046755,-1000.0,0.00014247,2]
[400497481,1767669046764,-1000.0,0.00014247,2]
[400497482,1767669046774,-1000.0,0.00014247,2]
[400497483,1767669046783,-1000.0,0.00014247,2]
[400497484,1767669046792,-500.93281474,0.00014247,2]
[400497485,1767669046801,-1000.0,0.00014247,2]
[400497486,1767669046811,-1000.0,0.00014247,2]
[400497487,1767669046820,-1000.0,0.00014247,2]
[400497488,1767669046828,-1111.17940714,0.00014247,2]
[400497489,1767669046838,-298.2905821,0.00014247,2]
[400497490,1767669046849,-1000.0,0.00014247,2]
[400497491,1767669046860,-1000.0,0.00014247,2]
[400497492,1767669046870,-1000.0,0.00014247,2]
[400497493,1767669046880,-1000.0,0.00014247,2]
[400497494,1767669046890,-1000.0,0.00014247,2]
[400497495,1767669046899,-1000.0,0.00014247,2]
[400497496,1767669046908,-955.91949875,0.00014247,2]
[400497497,1767669046918,-267.83128713,0.00014247,2]
[400497498,1767669046927,-1000.29052358,0.00014247,2]
[400497499,1767669046936,-1000.0,0.00014247,2]
[400497500,1767669046945,-1000.0,0.00014247,2]
[400497501,1767669046955,-1000.0,0.00014247,2]
[400497502,1767669046964,-1000.0,0.00014247,2]
[400497503,1767669046976,-295.59542972,0.00014247,2]
[400497504,1767669046986,-1000.6452233,0.00014247,2]
[400497505,1767669046996,-1000.0,0.00014247,2]
[400497506,1767669047007,-1000.4411934,0.00014247,2]
[400497507,1767669047016,-151.0,0.00014247,2]
[400497508,1767669047025,-151.0,0.00014247,2]
[400497509,1767669047035,-4075.22589402,0.0001435,2]
[400497510,1767669047044,-1146.854911,0.00014368,2]
[400497511,1767669047053,-1146.854911,0.00014368,2]
[400497512,1767669047062,-1146.854911,0.00014368,2]
[400497513,1767669047072,-1146.854911,0.00014368,2]
[400497514,1767669047081,-226.603026,0.00014368,2]
[400497515,1767669047090,-226.603026,0.00014368,2]
[400497516,1767669047099,-226.603026,0.00014368,2]
[400497517,1767669047108,-226.603026,0.00014368,2]
[400497518,1767669047118,-818.87701711,0.00014368,2]
[400497519,1767669047127,-812.57917257,0.00014368,2]
[400497520,1767669070915,157.27,9.3e-05,2]
[400497521,1767669122891,192.86043116,0.00023783,120]
[400497522,1767669132242,155.19,9.3e-05,2]
[400497524,1767669164598,220.85321807,9.799e-05,2]
[400497525,1767669190019,157.14,9.3e-05,2]
[400497526,1767669252865,155.36,9.3e-05,2]
[400497527,1767669296036,155.0,3e-05,2]
[400497528,1767669310962,157.03,9.3e-05,2]
[400497529,1767669372249,155.51,9.3e-05,2]
[400497530,1767669429370,156.94,9.3e-05,2]
[400497531,1767669449229,155.0,3e-05,2]
[400497532,1767669493060,155.64,9.3e-05,2]
[400497533,1767669550926,156.86,9.3e-05,2]
[400497535,1767669612247,155.75,9.3e-05,2]
[400497536,1767669670355,156.79,9.3e-05,2]
[400497537,1767669732919,155.84,9.3e-05,2]
[400497538,1767669791043,156.73,9.3e-05,2]
[400497539,1767669851898,155.92,9.3e-05,2]
[400497540,1767669878577,155.0,3e-05,2]
[400497541,1767669909561,156.68,9.3e-05,2]
[400497543,1767669972588,155.99,9.3e-05,2]
[400497547,1767670030604,156.64,9.3e-05,2]
[400497548,1767670033409,155.0,3e-05,2]
[400497549,1767670043291,660.30565215,0.0003,120]
[400497550,1767670056721,620.55678357,9.8e-05,2]
[400497551,1767670092591,156.05,9.3e-05,2]
[400497554,1767670150193,156.6,9.3e-05,2]
[400497555,1767670212105,156.1,9.3e-05,2]
[400497595,1767670232252,-462.228,9.971e-05,2]
[400497608,1767670238341,-737.772,9.971e-05,2]
[400497609,1767670238351,-5000.0,9.972e-05,2]
[400497610,1767670238361,-560.0,9.972e-05,2]
[400497611,1767670238371,-266.29861458,0.00010151,2]
[400497612,1767670238380,-300.0,0.0001017,2]
[400497613,1767670238390,-300.0,0.0001017,2]
[400497614,1767670238399,-777.46622417,0.00010263,2]
[400497615,1767670238411,-342.72831518,0.00010263,2]
[400497616,1767670238421,-157.27168482,0.00010968,2]
[400497617,1767670238439,-1522.72831518,0.00010968,2]
[400497618,1767670238449,-156.1,0.000114,2]
[400497619,1767670238458,-310.684107,0.00011405,2]
[400497620,1767670238468,-300.0,0.00011595,2]
[400497621,1767670238478,-238.0,0.00011595,2]
[400497622,1767670238487,-2090.38907871,0.00011596,2]
[400497623,1767670238496,-314.23236521,0.00012151,2]
[400497626,1767670238506,-420.0,0.00012734,2]
[400497629,1767670238527,-1000000.0,0.00012798,2]
[400497631,1767670238538,-162.31283624,0.000128,2]
[400497633,1767670238548,-267.72302843,0.00012893,2]
[400497635,1767670238557,-500.0,0.00012893,2]
[400497637,1767670238566,-500.0,0.00012893,2]
[400497639,1767670238576,-500.0,0.00012893,2]
[400497641,1767670238586,-523.95048039,0.00012893,2]
[400497643,1767670238596,-434.21823431,0.00012893,2]
[400497645,1767670238606,-166.71,0.00012897,2]
[400497647,1767670238615,-500.0,0.00012898,2]
[400497649,1767670238625,-213.35708893,0.00012898,2]
[400497651,1767670238635,-500.0,0.00012898,2]
[400497653,1767670238645,-500.0,0.00012898,2]
[400497655,1767670238656,-551.69345964,0.00012898,2]
[400497657,1767670238665,-500.0,0.00012898,2]
[400497659,1767670238675,-500.0,0.00012898,2]
[400497661,1767670238684,-500.0,0.00012898,2]
[400497663,1767670238694,-500.0,0.00012898,2]